bitfinex/quotes_ETHUSD_20240614
["timestamp","ask_amount","ask_price","bid_price","bid_amount"]
[1718327923981,7.278,3474.8,3473.8,0.32192309]
[1718327924370,7.278,3474.8,3473.8,0.26435409]
[1718327924573,7.278,3474.8,3473.9,0.12699542]
[1718327925718,2.03,3474.6,3473.9,0.12699542]
[1718327926030,4.39424514,3474.6,3472.9,2.4704]
[1718327926319,4.39424514,3474.6,3474.0,0.12677609]
[1718327926522,4.39424514,3474.6,3473.0,4.43344514]
[1718327926901,4.39424514,3474.6,3473.1,0.12709891]
[1718327927192,4.39424514,3474.6,3473.2,0.70309441]
[1718327927423,4.39424514,3474.6,3473.2,0.83015745]
[1718327928600,6.70754514,3474.5,3473.2,0.83015745]
[1718327928793,6.70754514,3474.5,3472.9,2.4704]
[1718327929032,6.70754514,3474.5,3473.3,0.12702716]
[1718327929230,6.70754514,3474.5,3472.9,2.4704]
[1718327929436,6.70754514,3474.5,3473.4,0.12699129]
[1718327929734,6.70754514,3474.5,3472.9,2.4704]
[1718327929937,0.96683451,3474.4,3473.5,0.12695542]
[1718327930119,2.40027965,3474.4,3473.0,0.57651654]
[1718327930324,2.40027965,3474.4,3473.6,0.12691955]
[1718327930640,2.40027965,3474.4,3473.0,0.57651654]
[1718327930930,2.40027965,3474.4,3473.7,0.12688368]
[1718327931138,1.06351797,3474.3,3473.0,0.57651654]
[1718327931496,1.06351797,3474.3,3473.1,0.12709891]
[1718327933433,1.43344514,3474.4,3473.1,0.18467725]
[1718327933912,1.43344514,3474.4,3473.1,0.12709891]
[1718327934745,1.43344514,3474.3,3473.1,0.12709891]
[1718327934913,2.03,3474.2,3473.1,0.12709891]
[1718327935101,0.34634451,3474.1,3473.1,0.12709891]
[1718327935301,0.34634451,3474.1,3472.9,2.4704]
[1718327935615,0.34634451,3474.1,3473.0,0.12727129]
[1718327937626,4.3869,3473.8,3473.0,0.12727129]
[1718327937837,4.3869,3473.8,3472.5,2.385]
[1718327937838,1.43344514,3473.8,3472.6,0.05758788]
[1718327938005,1.43344514,3473.8,3472.7,0.37163774]
[1718327938519,1.43344514,3473.8,3472.7,0.24425879]
[1718327939238,3.0,3474.0,3472.8,0.05758785]
[1718327939540,3.0,3474.0,3472.9,2.4884]
[1718327939728,5.37634451,3474.1,3473.0,0.31218047]
[1718327939929,5.03,3474.1,3473.0,0.38187008]
[1718327940126,3.0,3474.0,3473.0,0.25459879]
[1718327940339,2.03,3474.1,3473.0,0.25459879]
[1718327942047,2.03,3474.2,3473.0,0.25459879]
[1718327942246,3.46344514,3474.2,3473.0,0.25459879]
[1718327942550,3.0,3474.1,3473.0,0.25459879]
[1718327946170,3.0,3474.1,3472.9,2.4884]
[1718327949051,4.34601965,3474.2,3472.9,2.4884]
[1718327949253,3.0,3474.1,3472.9,2.4884]
[1718327950952,3.0,3474.1,3473.0,0.12788562]
[1718327951266,3.0,3474.1,3473.1,2.4984]
[1718327951469,3.0,3474.1,3473.2,0.12781386]
[1718327952975,0.846,3473.6,3473.2,0.12781386]
[1718327953682,0.846,3473.6,3473.3,0.12777799]
[1718327953852,0.846,3473.6,3473.1,2.74824]
[1718327954052,0.846,3473.6,3473.2,0.12781386]
[1718327954252,0.846,3473.6,3473.2,0.41541925]
[1718327954961,7.278,3474.1,3473.2,0.41541925]
[1718327955176,7.278,3474.5,3473.4,2.4122]
[1718327955407,2.3095,3474.9,3473.4,2.4122]
[1718327955408,0.846,3474.1,3473.4,2.4122]
[1718327955564,0.846,3474.1,3473.5,0.3976624]
[1718327956999,4.43344514,3474.8,3473.5,0.3976624]
[1718327957200,0.846,3474.1,3473.5,0.3976624]
[1718327957363,0.846,3474.1,3473.5,0.26998054]
[1718327957563,0.846,3474.1,3473.6,0.39562023]
[1718327963514,3.0,3474.8,3473.6,0.12740218]
[1718327963515,0.846,3473.7,3473.6,0.12740218]
[1718327963824,6.03,3474.8,3473.6,0.12740218]
[1718327963825,2.4076,3474.2,3473.6,0.12740218]
[1718327964030,0.846,3473.7,3473.1,2.3077]
[1718327967078,0.846,3473.5,3473.1,2.3077]
[1718327967278,0.846,3473.5,3473.1,2.53847]
[1718327968425,0.846,3473.3,3472.7,0.59443492]
[1718327968630,0.846,3472.8,3472.5,2.449]
[1718327969715,0.846,3472.8,3472.6,0.12784383]
[1718327972922,3.0,3473.5,3472.6,0.12784383]
[1718327973213,0.846,3472.9,3472.6,0.12784383]
[1718327974419,3.0,3473.5,3472.6,0.12784383]
[1718327974580,0.846,3473.1,3472.6,0.12784383]
[1718327975917,0.846,3472.9,3472.6,0.12784383]
[1718327977197,3.0,3473.5,3472.6,0.12784383]
[1718327977410,0.846,3472.9,3472.6,0.12784383]
[1718327977705,0.846,3472.7,3472.6,0.12784383]
[1718327978028,0.846,3472.7,3471.9,0.59443492]
[1718327978029,0.846,3472.7,3471.6,2.3416]
[1718327978179,3.0,3473.4,3472.6,0.12825838]
[1718327978387,0.846,3472.7,3471.6,2.3416]
[1718327978709,0.846,3472.3,3471.7,0.12858147]
[1718327981110,0.847,3472.2,3471.7,0.12858147]
[1718327981926,2.3878,3473.0,3471.7,0.12858147]
[1718327982099,0.847,3472.2,3471.7,0.67559962]
[1718327982746,3.0,3473.1,3471.8,0.05760142]
[1718327983036,4.43344514,3473.1,3471.8,0.05760142]
[1718327983235,0.847,3472.4,3471.9,0.12921698]
[1718327984304,3.0,3473.2,3472.0,2.48779972]
[1718327984543,0.67918245,3473.1,3472.1,0.12914518]
[1718327984749,0.847,3472.6,3472.1,0.18674051]
[1718327985041,3.0,3473.2,3472.1,0.12914518]
[1718327985524,0.847,3472.5,3472.1,0.12914518]
[1718327985730,0.847,3472.5,3472.2,0.28757487]
[1718327986103,0.847,3472.5,3472.3,0.12904899]
[1718327986305,7.278,3473.1,3472.2,0.28757487]
[1718327986524,0.847,3472.6,3472.3,0.12904899]
[1718327986732,0.847,3472.6,3472.2,0.28757487]
[1718327986905,0.847,3472.6,3472.4,0.12901309]
[1718327987106,3.0,3473.0,3472.2,0.28757487]
[1718327987315,0.847,3472.6,3472.2,0.28757487]
[1718327992242,0.847,3472.5,3472.2,0.28757487]
[1718327996355,0.847,3472.6,3472.2,0.28757487]
[1718328000361,7.278,3473.4,3472.3,0.32937403]
[1718328000661,0.847,3473.0,3472.3,0.32937403]
[1718328001148,0.847,3473.0,3472.4,0.1287838]
[1718328001519,0.847,3472.8,3472.4,0.1287838]
[1718328002054,3.0,3473.5,3472.5,2.44]
[1718328002223,0.847,3472.9,3472.5,2.44]
[1718328002630,0.847,3472.9,3472.6,0.124108]
[1718328004144,0.847,3472.9,3472.5,2.44]
[1718328004348,0.847,3472.9,3472.6,0.124108]
[1718328006339,0.847,3472.7,3472.6,0.124108]
[1718328006672,0.847,3472.7,3471.8,2.4159]
[1718328006843,3.70014514,3472.7,3472.6,0.12401531]
[1718328007043,7.54714514,3472.7,3471.4,2.4005]
[1718328007247,0.847,3472.1,3471.4,2.4005]
[1718328007465,0.847,3472.1,3471.5,0.12441022]
[1718328007647,0.847,3472.1,3471.4,2.4005]
[1718328007844,0.847,3472.1,3471.6,0.12437431]
[1718328008060,0.847,3472.1,3471.5,0.12441022]
[1718328008245,0.847,3472.1,3471.4,2.4005]
[1718328008450,0.847,3472.1,3471.6,0.12437431]
[1718328008646,0.847,3472.1,3471.5,0.12441022]
[1718328008853,0.847,3472.1,3471.7,0.1243384]
[1718328009065,0.847,3472.1,3471.6,0.12437431]
[1718328009271,0.847,3472.1,3471.8,0.12430249]
[1718328009471,0.847,3472.1,3471.7,0.12469945]
[1718328009689,0.847,3472.1,3471.9,0.12462764]
[1718328009855,0.847,3472.1,3471.8,0.12466354]
[1718328010170,0.847,3472.1,3471.9,0.12462764]
[1718328010770,0.847,3472.1,3472.0,0.12459174]
[1718328011149,0.847,3472.1,3471.4,2.72525]
[1718328011354,0.847,3472.1,3471.5,0.39729627]
[1718328014278,7.278,3472.5,3471.6,0.05760623]
[1718328014581,7.278,3472.5,3471.7,3.2923]
[1718328014883,7.278,3472.5,3471.8,0.05759856]
[1718328015081,7.278,3472.5,3471.8,0.1825695]
[1718328015239,7.278,3472.5,3471.9,0.34748695]
[1718328015666,7.278,3472.5,3472.0,0.1248113]
[1718328015667,8.125,3472.5,3472.0,0.1248113]
[1718328017050,7.278,3472.5,3472.0,0.1248113]
[1718328017248,7.278,3472.5,3472.1,2.3898]
[1718328017489,2.463,3473.3,3472.2,0.05759552]
[1718328017796,0.847,3473.1,3472.3,0.54285539]
[1718328017948,7.278,3473.7,3472.4,2.3428]
[1718328018147,0.847,3473.2,3472.5,0.12463182]
[1718328019541,0.847,3473.2,3472.5,0.18222147]
[1718328019747,0.847,3473.2,3472.5,0.56795014]
[1718328020247,3.0,3473.6,3472.5,0.56795014]
[1718328020452,7.278,3473.7,3472.7,0.847]
[1718328020646,0.847,3473.6,3472.8,0.05758092]
[1718328020847,0.847,3473.6,3472.8,0.75875722]
[1718328021470,7.278,3474.0,3472.8,0.7011763]
[1718328021744,0.847,3473.4,3472.8,0.12452415]
[1718328021944,0.847,3473.4,3472.6,2.3237]
[1718328022351,0.847,3473.4,3472.7,0.12456004]
[1718328022552,0.847,3473.4,3472.8,0.51144338]
[1718328022884,0.847,3473.3,3472.9,0.12448827]
[1718328023393,0.847,3473.3,3473.0,0.12445239]
[1718328023746,0.847,3473.3,3472.8,0.51144338]
[1718328023944,0.847,3473.3,3473.1,0.12441651]
[1718328024146,0.847,3473.3,3472.8,0.51144338]
[1718328024380,0.847,3473.5,3472.9,0.40800261]
[1718328024579,0.847,3473.3,3472.9,0.40800261]
[1718328025093,0.847,3473.3,3472.9,0.12448827]
[1718328025390,0.847,3473.1,3472.4,0.59443492]
[1718328025559,2.3965,3473.5,3473.0,0.12388649]
[1718328025880,2.3965,3473.5,3472.4,0.59443492]
[1718328025881,0.847,3473.3,3472.8,2.3586]
[1718328026295,0.847,3473.3,3472.9,0.12392237]
[1718328026592,0.847,3473.3,3472.8,2.3586]
[1718328026790,0.847,3473.3,3473.0,0.12388649]
[1718328026945,0.847,3473.3,3472.9,0.12392237]
[1718328027143,0.847,3473.1,3472.5,2.4123]
[1718328027394,0.847,3472.9,3472.6,0.12403003]
[1718328027884,0.847,3472.9,3472.2,2.4123]
[1718328028075,0.847,3472.9,3472.7,0.12399414]
[1718328028384,0.847,3472.9,3472.2,2.4123]
[1718328028586,0.847,3472.9,3472.3,0.24123]
[1718328028756,0.847,3472.9,3472.3,0.3653677]
[1718328030186,0.847,3472.6,3472.3,0.1241377]
[1718328030684,0.847,3472.6,3471.9,2.2614]
[1718328030890,0.847,3472.6,3472.4,0.12380908]
[1718328031183,0.847,3472.6,3472.5,0.12377319]
[1718328031485,3.1903,3472.6,3472.5,0.12377319]
[1718328031712,3.50933,3472.6,3471.6,2.4897]
[1718328031850,0.847,3472.0,3471.6,2.4897]
[1718328032062,0.847,3472.0,3471.7,0.16043487]
[1718328032886,7.59703,3472.6,3471.7,0.16043487]
[1718328033231,0.847,3472.2,3471.6,2.4897]
[1718328033362,7.278,3472.6,3471.7,0.24897]
[1718328033557,0.847,3472.2,3471.7,0.24897]
[1718328033761,7.278,3472.6,3471.8,0.21821111]
[1718328033973,8.125,3472.6,3471.8,0.05760338]
[1718328034372,8.125,3472.6,3471.7,0.24897]
[1718328034579,0.847,3472.5,3471.9,2.3265]
[1718328035075,0.847,3472.5,3472.0,0.16048503]
[1718328036493,3.0,3472.9,3472.0,0.16048503]
[1718328036494,0.847,3472.3,3472.0,0.16048503]
[1718328037198,3.0,3472.9,3472.0,0.16048503]
[1718328037445,0.847,3472.4,3472.0,0.16048503]
[1718328037729,3.0,3472.8,3472.1,0.16077001]
[1718328037941,0.847,3472.7,3471.9,2.3265]
[1718328038146,0.847,3472.7,3472.0,0.16080696]
[1718328040221,0.847,3473.0,3472.2,2.4396]
[1718328040527,0.847,3473.1,3472.3,0.40809119]
[1718328040724,0.847,3473.1,3472.3,0.56865559]
[1718328041019,7.278,3473.4,3472.4,2.4294]
[1718328041193,7.278,3473.4,3472.6,2.4294]
[1718328041382,7.278,3473.4,3472.7,0.05758322]
[1718328041585,7.278,3473.9,3472.8,0.05758356]
[1718328042126,7.278,3473.9,3472.9,0.16034281]
[1718328042922,7.278,3473.9,3472.7,0.05758458]
[1718328043094,9.68359,3473.9,3472.8,0.16037973]
[1718328043320,9.68359,3473.9,3472.8,0.21796431]
[1718328044113,9.68359,3473.9,3472.8,0.16037973]
[1718328044744,9.68359,3473.9,3472.9,2.3074]
[1718328044960,2.443049,3473.8,3472.9,2.3074]
[1718328045125,2.031,3473.9,3473.0,0.16030588]
[1718328052443,5.031,3474.0,3473.0,0.16030588]
[1718328052861,5.031,3474.0,3472.9,2.3074]
[1718328058665,5.031,3474.0,3473.0,0.15964251]
[1718328059855,1.43344514,3473.9,3473.0,0.15964251]
[1718328060076,0.88313451,3473.8,3473.0,0.15964251]
[1718328060282,1.43344514,3473.7,3472.9,2.3074]
[1718328060881,0.846,3473.2,3472.9,2.3074]
[1718328061782,1.43344514,3473.7,3472.6,2.4044]
[1718328061783,0.846,3473.0,3472.6,2.4044]
[1718328061966,0.846,3472.8,3472.6,2.4044]
[1718328062168,0.846,3472.8,3472.7,0.1545858]
[1718328062479,0.846,3472.8,3472.0,2.3978]
[1718328062681,3.0,3473.3,3472.7,0.15463443]
[1718328062883,3.0,3473.3,3472.0,2.3978]
[1718328062884,0.846,3472.8,3472.0,2.3978]
[1718328063236,0.846,3472.3,3472.1,0.15486091]
[1718328063377,0.846,3472.2,3472.1,0.15486091]
[1718328063563,0.846,3472.2,3471.7,2.3978]
[1718328063913,0.846,3472.2,3471.8,0.15497175]
[1718328064199,0.846,3472.2,3471.7,2.3978]
[1718328064498,0.846,3472.2,3471.8,0.15497175]
[1718328064995,0.846,3472.3,3471.9,0.1549348]
[1718328065201,0.846,3472.3,3471.7,2.3978]
[1718328065363,0.846,3472.3,3471.8,0.39475175]
[1718328066202,3.0,3473.0,3471.8,0.39475175]
[1718328066418,0.846,3472.3,3471.7,2.3978]
[1718328066885,0.846,3472.3,3471.8,0.15497175]
[1718328067271,0.846,3472.3,3471.7,2.3978]
[1718328067471,0.846,3472.3,3471.9,0.1549348]
[1718328067672,0.846,3472.1,3471.8,0.15497175]
[1718328067909,0.846,3472.1,3472.0,0.15489786]
[1718328068210,0.846,3472.1,3471.7,2.3978]
[1718328071616,0.846,3471.9,3471.0,2.3215]
[1718328071780,0.846,3471.9,3471.1,0.2570456]
[1718328071977,0.846,3471.9,3471.2,0.15519349]
[1718328073923,5.2627,3472.5,3471.2,0.15519349]
[1718328074086,0.846,3471.9,3471.2,0.15519349]
[1718328075525,3.0,3472.5,3471.3,3.83434514]
[1718328075839,7.278,3472.6,3471.7,2.3161]
[1718328076149,0.846,3472.4,3471.7,2.3161]
[1718328076287,0.846,3472.4,3471.8,0.15585211]
[1718328076917,7.278,3473.1,3471.8,0.15585211]
[1718328077224,3.0,3473.0,3471.7,2.3161]
[1718328077398,0.846,3472.4,3471.8,0.23161]
[1718328077601,0.846,3472.4,3471.9,0.15581516]
[1718328078524,3.0,3473.0,3471.9,0.21341338]
[1718328078715,3.0,3473.0,3472.0,2.2525]
[1718328078918,0.846,3472.6,3472.0,2.2525]
[1718328079099,0.846,3472.6,3472.1,0.248411]
[1718328079428,0.846,3472.6,3472.1,0.40397228]
[1718328083430,0.846,3472.6,3472.1,0.46156734]
[1718328083630,7.278,3473.1,3472.1,0.46156734]
[1718328083823,0.846,3472.8,3472.1,0.46156734]
[1718328083995,0.846,3472.8,3472.2,0.27140673]
[1718328084192,0.846,3472.8,3472.3,0.15521013]
[1718328084534,0.846,3472.8,3472.2,0.27140673]
[1718328084834,0.846,3472.8,3472.3,0.21280288]
[1718328085039,0.846,3472.8,3472.3,0.15521013]
[1718328085332,0.846,3472.8,3472.3,0.42312182]
[1718328085632,0.846,3472.8,3472.4,0.15510511]
[1718328085818,0.846,3472.6,3472.4,0.15510511]
[1718328086631,0.846,3472.6,3472.0,2.2525]
[1718328086835,0.846,3472.4,3472.0,2.2525]
[1718328087034,0.846,3472.4,3472.1,0.248411]
[1718328088259,0.846,3472.4,3472.0,2.2525]
[1718328089694,0.846,3472.4,3472.1,0.15521593]
[1718328092034,0.846,3472.4,3471.8,2.69721]
[1718328092255,0.846,3472.4,3472.2,0.15517898]
[1718328092460,0.846,3472.4,3471.8,2.69721]
[1718328092644,0.846,3472.4,3472.3,0.15514204]
[1718328092826,0.846,3472.4,3471.8,2.4656]
[1718328093027,2.4128,3472.9,3471.9,0.15528982]
[1718328093241,0.846,3472.4,3471.9,0.15528982]
[1718328096147,3.84624514,3472.9,3471.9,0.15528982]
[1718328096473,0.846,3472.3,3471.9,0.15528982]
[1718328099358,4.95866965,3472.9,3471.9,0.15528982]
[1718328099559,0.846,3472.3,3471.9,0.15528982]
[1718328099776,0.846,3472.3,3471.8,2.4656]
[1718328099979,0.846,3472.3,3472.0,0.15533554]
[1718328100181,0.846,3472.3,3471.9,0.15537248]
[1718328100376,4.95866965,3472.9,3472.1,0.15529859]
[1718328100579,0.846,3472.2,3471.4,2.3053]
[1718328100765,0.846,3472.1,3471.4,2.3053]
[1718328100967,0.846,3472.1,3471.5,0.15552029]
[1718328105785,2.4408,3472.4,3471.5,0.15552029]
[1718328106097,0.846,3471.8,3471.5,0.15552029]
[1718328106397,0.846,3471.6,3471.5,0.15552029]
[1718328108265,0.846,3471.6,3471.1,2.2699]
[1718328108484,0.846,3471.6,3471.5,0.15552029]
[1718328108767,0.846,3471.6,3471.1,2.2699]
[1718328108983,0.846,3471.6,3471.5,0.15552029]
[1718328109180,0.846,3471.6,3471.1,2.2699]
[1718328109696,0.846,3471.6,3471.2,0.15563117]
[1718328111097,0.846,3471.7,3471.2,0.15563117]
[1718328111256,3.0,3472.2,3471.2,0.15563117]
[1718328111461,0.846,3471.7,3471.2,0.15563117]
[1718328112769,3.0,3472.2,3471.2,0.21324333]
[1718328112976,0.846,3471.9,3471.3,0.05761216]
[1718328113383,0.846,3471.9,3471.4,0.15586375]
[1718328114698,3.0,3472.2,3471.5,0.21343626]
[1718328115000,7.278,3472.3,3471.6,2.3909]
[1718328115296,0.846,3472.2,3471.7,0.15575288]
[1718328115802,0.846,3472.0,3471.4,2.3089]
[1718328115986,7.278,3472.3,3471.5,0.05760636]
[1718328116183,0.846,3472.0,3471.5,0.21377848]
[1718328116499,0.846,3472.0,3471.6,0.25226785]
[1718328116701,0.846,3472.0,3471.6,0.40835927]
[1718328117379,7.278,3472.3,3471.6,0.40835927]
[1718328117580,0.846,3472.1,3471.6,0.40835927]
[1718328117783,0.846,3472.1,3471.6,0.25226785]
[1718328117988,0.846,3472.1,3471.7,0.15605447]
[1718328119295,0.846,3472.2,3471.7,0.43353733]
[1718328119493,0.846,3472.2,3471.7,0.15605447]
[1718328119696,7.278,3472.6,3471.3,0.60202803]
[1718328119904,0.846,3472.2,3471.6,2.3558]
[1718328120299,0.846,3472.2,3471.7,0.15603501]
[1718328120909,0.846,3472.0,3471.7,0.15603501]
[1718328121676,7.278,3472.6,3471.7,0.15603501]
[1718328121906,0.846,3472.1,3471.7,0.15603501]
[1718328122076,7.278,3472.6,3471.7,0.15603501]
[1718328122261,0.846,3472.2,3471.7,0.15603501]
[1718328122468,0.846,3472.2,3471.7,0.40721851]
[1718328123534,7.278,3472.6,3471.7,0.40721851]
[1718328123679,0.846,3472.4,3471.7,0.40721851]
[1718328124419,0.846,3472.4,3471.7,0.15603501]
[1718328124576,0.846,3472.2,3471.7,0.15603501]
[1718328125390,3.0,3472.8,3471.7,0.15603501]
[1718328125570,0.846,3472.2,3471.7,0.15603501]
[1718328125789,0.846,3472.2,3471.7,0.55202131]
[1718328128066,0.846,3472.4,3471.7,0.55202131]
[1718328128307,7.278,3472.9,3471.9,2.4986]
[1718328128473,0.846,3472.7,3472.0,0.05759603]
[1718328128804,0.846,3472.7,3472.1,0.15556126]
[1718328129671,3.0,3473.0,3472.1,0.15556126]
[1718328129900,0.846,3472.7,3472.1,0.15556126]
[1718328131435,7.278,3473.4,3472.1,0.15556126]
[1718328131644,7.278,3473.4,3472.3,0.846]
[1718328131797,7.278,3473.4,3472.4,2.54758934]
[1718328131991,0.846,3473.3,3472.4,3.14961737]
[1718328132191,0.846,3473.3,3472.5,0.15518491]
[1718328132391,0.846,3473.3,3472.5,0.21277412]
[1718328132724,0.846,3473.3,3472.5,0.74780838]
[1718328133421,3.0,3473.7,3472.7,2.4772]
[1718328133625,0.846,3473.5,3472.8,0.05758257]
[1718328133828,0.846,3473.5,3472.8,0.21265182]
[1718328134141,2.2788,3474.1,3472.8,0.21265182]
[1718328134338,0.846,3473.5,3472.8,0.21265182]
[1718328134704,0.846,3473.5,3472.8,0.15506925]
[1718328135597,0.846,3473.3,3472.8,0.15506925]
[1718328139130,7.278,3473.8,3472.8,0.15506925]
[1718328139131,2.3631,3473.7,3472.8,0.15506925]
[1718328139335,2.3631,3473.7,3472.7,2.4772]
[1718328139336,0.846,3473.0,3472.7,2.4772]
[1718328139798,0.96411,3473.6,3472.8,0.1542912]
[1718328139999,0.846,3473.2,3472.7,2.4772]
[1718328140439,0.846,3473.2,3472.8,0.1542912]
[1718328140799,0.846,3473.2,3472.7,2.4772]
[1718328141204,0.846,3473.2,3472.8,0.1542912]
[1718328141625,0.846,3473.2,3472.7,2.4772]
[1718328141936,0.846,3473.2,3472.8,0.1542912]
[1718328142248,0.846,3473.2,3472.7,2.4772]
[1718328142539,0.846,3473.2,3472.8,0.1542912]
[1718328142904,0.846,3473.2,3472.7,2.4772]
[1718328143105,0.846,3473.2,3472.9,0.15425427]
[1718328143357,0.846,3473.2,3472.7,2.4772]
[1718328143358,0.846,3473.3,3472.8,0.0575891]
[1718328143502,0.846,3473.3,3473.0,0.15421734]
[1718328143813,0.846,3473.3,3472.7,2.4772]
[1718328144219,0.846,3473.3,3472.8,0.1542912]
[1718328144618,0.846,3473.1,3472.8,0.1542912]
[1718328146605,0.846,3473.1,3472.4,2.4806]
[1718328146807,0.846,3473.1,3472.9,0.1543272]
[1718328147040,0.846,3473.1,3472.4,2.4806]
[1718328147360,0.846,3473.1,3473.0,0.15429028]
[1718328147526,0.846,3473.1,3472.4,2.4806]
[1718328147722,2.4301,3473.4,3473.0,0.15445556]
[1718328147937,0.846,3473.1,3472.1,2.4387]
[1718328148252,0.846,3472.6,3472.1,2.4387]
[1718328148411,0.846,3472.6,3472.2,0.15475102]
[1718328151046,1.67645514,3473.3,3472.2,0.15475102]
[1718328151235,0.846,3472.7,3472.2,0.15475102]
[1718328151437,0.41065551,3473.2,3472.2,0.15475102]
[1718328151438,0.846,3472.5,3472.2,0.15475102]
[1718328151962,0.846,3472.5,3472.3,0.15471408]
[1718328152251,0.846,3472.6,3472.3,0.15471408]
[1718328152428,0.846,3472.6,3471.5,3.846]
[1718328152630,2.375,3472.9,3471.5,5.27944514]
[1718328152855,2.375,3472.9,3471.7,3.2734]
[1718328153063,0.846,3472.6,3471.7,3.2734]
[1718328153258,0.846,3472.6,3471.8,0.1548988]
[1718328154815,2.375,3472.9,3471.8,0.1548988]
[1718328155023,0.846,3472.6,3471.8,0.1548988]
[1718328155258,0.846,3472.6,3471.9,0.39562433]
[1718328155647,0.846,3472.6,3472.0,0.15482491]
[1718328156356,2.375,3472.9,3472.0,0.15482491]
[1718328156522,0.846,3472.7,3472.1,2.3448]
[1718328157069,0.846,3472.7,3472.2,0.15475102]
[1718328162262,1.43344514,3473.1,3472.2,0.15475102]
[1718328162436,0.846,3472.6,3472.2,0.15475102]
[1718328166871,1.14384551,3473.0,3472.2,0.15475102]
[1718328167074,0.846,3472.3,3472.2,0.15475102]
[1718328167463,0.846,3472.3,3471.6,2.3664]
[1718328167777,0.846,3472.0,3471.6,2.3664]
[1718328167980,0.846,3472.0,3471.7,0.15531994]
[1718328168746,7.278,3472.8,3471.9,0.846]
[1718328169068,0.846,3472.9,3472.0,2.2693]
[1718328169272,3.0,3473.1,3472.0,2.2693]
[1718328169472,7.52101,3473.3,3472.1,0.15530834]
[1718328169473,0.846,3472.9,3472.1,0.15530834]
[1718328169783,3.0,3473.2,3472.2,2.33519281]
[1718328169981,7.278,3473.3,3472.3,0.05759013]
[1718328170286,0.846,3473.0,3472.3,0.21281972]
[1718328171692,0.846,3473.2,3472.4,2.3363]
[1718328171870,0.846,3473.2,3472.5,0.05758929]
[1718328172043,0.846,3473.2,3472.5,0.2124921]
[1718328172760,0.846,3473.2,3472.5,0.58533632]
[1718328173987,0.846,3473.0,3472.5,0.58533632]
[1718328176048,3.0,3473.6,3472.5,0.58533632]
[1718328176246,0.846,3473.8,3472.9,0.846]
[1718328176492,0.846,3473.9,3473.1,2.3935]
[1718328176690,3.0,3474.0,3473.2,0.05757668]
[1718328176988,3.0,3474.0,3473.2,0.21199246]
[1718328176989,0.846,3473.8,3473.2,0.21199246]
[1718328177586,0.846,3473.8,3473.2,0.15441578]
[1718328178749,3.0,3474.2,3473.2,0.15441578]
[1718328178989,0.846,3473.5,3473.2,0.15441578]
[1718328179184,0.846,3473.5,3473.1,2.3935]
[1718328179386,0.846,3473.5,3473.3,0.15437886]
[1718328179554,0.846,3473.5,3473.1,2.3935]
[1718328179754,0.846,3473.5,3473.4,0.15434194]
[1718328179986,0.846,3473.5,3473.1,2.3935]
[1718328180152,0.846,3473.5,3473.2,0.23935]
[1718328180352,0.846,3473.5,3473.2,0.39376578]
[1718328182095,0.846,3473.7,3473.2,0.39376578]
[1718328182396,0.846,3473.8,3473.2,0.39376578]
[1718328183456,3.0,3474.2,3473.2,0.39376578]
[1718328183653,0.846,3473.8,3473.2,0.15441578]
[1718328183853,0.54186,3474.1,3473.2,0.15441578]
[1718328184049,0.846,3473.7,3473.2,0.15441578]
[1718328184271,0.846,3473.7,3473.1,2.3935]
[1718328184592,0.846,3473.7,3473.2,0.15441578]
[1718328185781,3.0,3474.2,3473.2,0.40920736]
[1718328185967,3.0,3474.4,3473.3,2.44317681]
[1718328186150,0.846,3474.0,3473.3,2.44317681]
[1718328186488,0.846,3474.2,3473.4,0.32736996]
[1718328186902,3.0,3474.4,3473.4,0.32736996]
[1718328187112,7.278,3474.5,3473.5,2.3856]
[1718328187251,7.278,3474.5,3473.6,2.44316784]
[1718328187457,7.278,3474.5,3473.7,2.3856]
[1718328187681,7.278,3474.5,3473.9,2.3856]
[1718328187896,0.846,3474.8,3474.0,0.05756305]
[1718328188097,0.846,3474.8,3474.0,0.21111956]
[1718328188968,7.278,3475.0,3474.0,0.21111956]
[1718328189163,7.278,3475.0,3474.0,0.15355651]
[1718328189368,2.4293,3474.8,3474.0,0.15355651]
[1718328189583,1.43344514,3474.7,3473.5,2.3204]
[1718328189771,2.4498,3474.4,3472.9,2.4304]
[1718328190098,2.029,3474.1,3473.6,0.15344169]
[1718328190254,2.029,3474.1,3472.9,2.4304]
[1718328190465,2.029,3474.1,3473.7,0.15340478]
[1718328190466,0.5029,3474.0,3473.7,0.15340478]
[1718328190760,0.5029,3474.0,3472.9,2.4304]
[1718328191169,0.5029,3474.0,3473.0,0.15386731]
[1718328192493,3.0,3474.3,3473.1,2.2706]
[1718328192680,5.4498,3474.4,3473.1,2.2706]
[1718328192885,5.4498,3474.4,3473.2,0.15395874]
[1718328194405,3.0,3474.4,3473.4,2.4709]
[1718328194584,3.0,3474.6,3473.4,2.4709]
[1718328194785,3.0,3474.6,3473.5,0.15384799]
[1718328194980,4.070896,3474.7,3473.5,0.15384799]
[1718328195609,4.070896,3474.7,3473.6,0.05757128]
[1718328195836,4.070896,3474.7,3473.7,2.3259]
[1718328196121,1.09643011,3474.6,3473.7,2.3259]
[1718328198877,1.09643011,3474.6,3473.8,0.15373726]
[1718328199409,1.09643011,3474.6,3473.7,2.3259]